fUSD/lending_fUSD_20260529
["ID","MTS","AMOUNT","RATE_DAILY","PERIOD"]
[423281179,1780019447000,-674.088751,0.0002529,2]
[423281173,1780019447000,-810.57,0.00025115,30]
[423281172,1780019447000,-810.69,0.00025115,30]
[423281170,1780019447000,-200.0,0.00025088,2]
[423281165,1780019447000,-206.2207616,0.00025,4]
[423281164,1780019447000,-301.087025,0.00025,2]
[423281163,1780019447000,-301.087025,0.00025,2]
[423281229,1780019448000,-1168.18,0.0002591,7]
[423281228,1780019448000,-1084.92,0.0002591,7]
[423281230,1780019448000,-1260.68,0.0002591,7]
[423281234,1780019448000,-300.0,0.00026,2]
[423281224,1780019448000,-625.96,0.00025786,2]
[423281227,1780019448000,-204.65865207,0.000258,2]
[423281223,1780019448000,-7018.55,0.00025786,2]
[423281225,1780019448000,-1896.61,0.00025786,2]
[423281220,1780019448000,-500.0,0.00025785,3]
[423281215,1780019448000,-936.0,0.00025637,2]
[423281221,1780019448000,-159.9044293,0.00025785,2]
[423281218,1780019448000,-203.62552242,0.00025711,2]
[423281222,1780019448000,-696.01315929,0.00025785,2]
[423281219,1780019448000,-500.0,0.00025785,2]
[423281214,1780019448000,-2991.49051684,0.00025636,2]
[423281217,1780019448000,-5244.6269349,0.00025704,2]
[423281226,1780019448000,-640.88249477,0.000258,2]
[423281216,1780019448000,-1378.96598735,0.0002565,2]
[423281233,1780019448000,-300.0,0.00026,2]
[423281238,1780019448000,-667.030463,0.00026,2]
[423281232,1780019448000,-197.90360153,0.0002595,2]
[423281231,1780019448000,-916.11,0.0002591,30]
[423281261,1780019448000,-3272.965499,0.00026384,2]
[423281259,1780019448000,-3272.965499,0.00026384,2]
[423281249,1780019448000,-500.0,0.00026234,2]
[423281250,1780019448000,-200.0,0.00026287,2]
[423281244,1780019448000,-500.0,0.00026028,7]
[423281243,1780019448000,-1649.38687646,0.00026027,2]
[423281245,1780019448000,-321.03433639,0.00026045,2]
[423281242,1780019448000,-2000.0,0.00026,7]
[423281260,1780019448000,-3272.965499,0.00026384,2]
[423281248,1780019448000,-936.0,0.00026192,3]
[423281240,1780019448000,-667.030463,0.00026,2]
[423281241,1780019448000,-667.030463,0.00026,2]
[423281239,1780019448000,-667.030463,0.00026,2]
[423281247,1780019448000,-260.4103811,0.00026184,2]
[423281236,1780019448000,-215.50460005,0.00026,30]
[423281246,1780019448000,-1668.77,0.00026045,2]
[423281237,1780019448000,-500.0,0.00026,2]
[423281235,1780019448000,-300.0,0.00026,2]
[423281381,1780019449000,-1348.007108,0.00027397,2]
[423281377,1780019449000,-1348.007108,0.00027397,2]
[423281372,1780019449000,-300.0,0.00027397,2]
[423281375,1780019449000,-1348.007108,0.00027397,2]
[423281373,1780019449000,-1348.007108,0.00027397,2]
[423281376,1780019449000,-1348.007108,0.00027397,2]
[423281374,1780019449000,-1348.007108,0.00027397,2]
[423281370,1780019449000,-1154.137718,0.00027397,2]
[423281382,1780019449000,-1348.007108,0.00027397,2]
[423281371,1780019449000,-1154.137718,0.00027397,2]
[423281383,1780019449000,-1348.007108,0.00027397,2]
[423281393,1780019449000,-1298.758075,0.00027397,2]
[423281387,1780019449000,-1348.007108,0.00027397,2]
[423281385,1780019449000,-1348.007108,0.00027397,2]
[423281389,1780019449000,-1298.758075,0.00027397,2]
[423281386,1780019449000,-1348.007108,0.00027397,2]
[423281388,1780019449000,-1348.007108,0.00027397,2]
[423281390,1780019449000,-1298.758075,0.00027397,2]
[423281391,1780019449000,-1298.758075,0.00027397,2]
[423281392,1780019449000,-1298.758075,0.00027397,2]
[423281379,1780019449000,-1348.007108,0.00027397,2]
[423281394,1780019449000,-1298.758075,0.00027397,2]
[423281396,1780019449000,-1298.758075,0.00027397,2]
[423281407,1780019449000,-3699.58,0.000274,7]
[423281384,1780019449000,-1348.007108,0.00027397,2]
[423281369,1780019449000,-1154.137718,0.00027397,2]
[423281357,1780019449000,-1154.137718,0.00027397,2]
[423281367,1780019449000,-1154.137718,0.00027397,2]
[423281350,1780019449000,-858.002337,0.00027397,2]
[423281353,1780019449000,-858.002337,0.00027397,2]
[423281352,1780019449000,-858.002337,0.00027397,2]
[423281351,1780019449000,-858.002337,0.00027397,2]
[423281344,1780019449000,-858.002337,0.00027397,2]
[423281347,1780019449000,-858.002337,0.00027397,2]
[423281349,1780019449000,-858.002337,0.00027397,2]
[423281348,1780019449000,-858.002337,0.00027397,2]
[423281345,1780019449000,-858.002337,0.00027397,2]
[423281346,1780019449000,-858.002337,0.00027397,2]
[423281355,1780019449000,-858.002337,0.00027397,2]
[423281378,1780019449000,-1348.007108,0.00027397,2]
[423281354,1780019449000,-858.002337,0.00027397,2]
[423281359,1780019449000,-1154.137718,0.00027397,2]
[423281360,1780019449000,-1154.137718,0.00027397,2]
[423281358,1780019449000,-1154.137718,0.00027397,2]
[423281366,1780019449000,-1154.137718,0.00027397,2]
[423281364,1780019449000,-1154.137718,0.00027397,2]
[423281361,1780019449000,-1154.137718,0.00027397,2]
[423281405,1780019449000,-500.0,0.00027398,7]
[423281362,1780019449000,-1154.137718,0.00027397,2]
[423281363,1780019449000,-1154.137718,0.00027397,2]
[423281380,1780019449000,-1348.007108,0.00027397,2]
[423281368,1780019449000,-1154.137718,0.00027397,2]
[423281356,1780019449000,-1154.137718,0.00027397,2]
[423281404,1780019449000,-1298.758075,0.00027397,2]
[423281365,1780019449000,-1154.137718,0.00027397,2]
[423281395,1780019449000,-1298.758075,0.00027397,2]
[423281425,1780019449000,-3000.0,0.0002755,30]
[423281428,1780019449000,-369.0,0.0002755,30]
[423281427,1780019449000,-730.0,0.0002755,30]
[423281433,1780019449000,-540.46,0.00027641,2]
[423281430,1780019449000,-540.38,0.0002758,7]
[423281436,1780019449000,-300.0,0.00027656,30]
[423281439,1780019449000,-540.38,0.00027672,7]
[423281437,1780019449000,-536.338243,0.00027671,30]
[423281438,1780019449000,-540.46,0.00027672,7]
[423281435,1780019449000,-1200.0,0.00027656,30]
[423281446,1780019449000,-270.9808449,0.00027702,30]
[423281431,1780019449000,-540.46,0.00027611,30]
[423281445,1780019449000,-325.97,0.00027702,30]
[423281440,1780019449000,-6580.74,0.000277,7]
[423281442,1780019449000,-2332.95,0.000277,14]
[423281443,1780019449000,-150.0,0.00027702,30]
[423281441,1780019449000,-3699.58,0.000277,7]
[423281447,1780019449000,-540.46,0.00027702,30]
[423281448,1780019449000,-540.38,0.00027702,30]
[423281451,1780019449000,-5312.02,0.00027711,7]
[423281450,1780019449000,-3928.54,0.00027711,7]
[423281452,1780019449000,-2859.56,0.00027711,7]
[423281449,1780019449000,-1679.79,0.00027711,7]
[423281453,1780019449000,-641.47607495,0.00027711,7]
[423281444,1780019449000,-293.0,0.00027702,30]
[423281426,1780019449000,-3000.0,0.0002755,30]
[423281406,1780019449000,-6580.74,0.000274,7]
[423281432,1780019449000,-540.38,0.00027611,30]
[423281403,1780019449000,-1298.758075,0.00027397,2]
[423281398,1780019449000,-1298.758075,0.00027397,2]
[423281402,1780019449000,-1298.758075,0.00027397,2]
[423281400,1780019449000,-1298.758075,0.00027397,2]
[423281397,1780019449000,-1298.758075,0.00027397,2]
[423281399,1780019449000,-1298.758075,0.00027397,2]
[423281408,1780019449000,-2332.95,0.000274,14]
[423281410,1780019449000,-1019.82,0.00027465,7]
[423281411,1780019449000,-1098.09,0.00027465,7]
[423281419,1780019449000,-2859.56,0.0002755,30]
[423281409,1780019449000,-1000.0,0.00027418,7]
[423281401,1780019449000,-1298.758075,0.00027397,2]
[423281420,1780019449000,-6019.03,0.0002755,30]
[423281418,1780019449000,-540.46,0.0002755,2]
[423281417,1780019449000,-5312.02,0.0002755,30]
[423281412,1780019449000,-150.0,0.00027521,2]
[423281416,1780019449000,-3928.54,0.0002755,30]
[423281421,1780019449000,-5099.13,0.0002755,30]
[423281415,1780019449000,-1679.79,0.0002755,30]
[423281413,1780019449000,-253.06,0.0002755,2]
[423281423,1780019449000,-3000.0,0.0002755,30]
[423281424,1780019449000,-3000.0,0.0002755,30]
[423281434,1780019449000,-540.38,0.00027641,2]
[423281422,1780019449000,-540.38,0.0002755,2]
[423281414,1780019449000,-150.0,0.0002755,2]
[423281429,1780019449000,-540.46,0.0002758,7]
[423281454,1780019451000,-4187.24692403,0.00027711,7]
[423281463,1780019452000,-1469.7923753,0.00027727,2]
[423281465,1780019452000,-1099.24881347,0.00026384,2]
[423281456,1780019452000,-224.25046767,0.00027711,7]
[423281457,1780019452000,-455.50153801,0.00014804,2]
[423281459,1780019452000,-467.0,0.00019734,5]
[423281455,1780019452000,-1190.30700102,0.00027711,7]
[423281460,1780019452000,-4874.87953233,0.00027711,7]
[423281461,1780019452000,-5898.72849507,0.00027727,2]
[423281462,1780019452000,-3530.2076247,0.00027727,2]
[423281464,1780019452000,-2039.84538437,0.00027727,2]
[423281458,1780019452000,-544.49846199,0.00014804,2]
[423281474,1780019453000,-3272.965499,0.00026384,2]
[423281477,1780019453000,-151.0,0.00019178,2]
[423281476,1780019453000,-801.48566515,0.00026384,2]
[423281471,1780019453000,-3272.965499,0.00026384,2]
[423281473,1780019453000,-3272.965499,0.00026384,2]
[423281472,1780019453000,-3272.965499,0.00026384,2]
[423281468,1780019453000,-1000.0,0.0001897,2]
[423281469,1780019453000,-487.0,0.00019734,5]
[423281466,1780019453000,-1000.0,0.00014934,2]
[423281470,1780019453000,-2173.71668553,0.00026384,2]
[423281475,1780019453000,-1740.96375595,0.00026384,2]
[423281478,1780019453000,-151.0,0.00019178,2]
[423281467,1780019453000,-1000.0,0.00016314,2]
[423281479,1780019453000,-368.23,0.00019291,2]
[423281494,1780019453000,-973.19932114,0.00027727,2]
[423281482,1780019453000,-298.951,0.00019291,2]
[423281481,1780019453000,-150.0,0.00019291,2]
[423281483,1780019453000,-528.5675,0.00019822,2]
[423281484,1780019453000,-471.4325,0.00019822,2]
[423281486,1780019453000,-3638.0,0.00022291,2]
[423281485,1780019453000,-1000.0,0.00020138,2]
[423281487,1780019453000,-150.0,0.00022291,2]
[423281489,1780019453000,-427.0,0.00023694,7]
[423281491,1780019453000,-150.0,0.00025291,2]
[423281490,1780019453000,-150.0,0.00025291,2]
[423281492,1780019453000,-3638.0,0.00025291,2]
[423281488,1780019453000,-150.0,0.00022291,2]
[423281493,1780019453000,-730.5160779,0.00026384,2]
[423281480,1780019453000,-3269.77,0.00019291,2]
[423281495,1780019512000,-500.0,0.0001216,2]
[423281496,1780019542000,-500.0,0.0001216,2]
[423281497,1780019570000,-300.0,0.00012159,2]
[423281498,1780019619000,-403.83647465,0.00012159,2]
[423281499,1780019646000,-106.09680184,0.00012159,2]
[423281500,1780019696000,-300.0,0.00012158,2]
[423281501,1780019710000,1338.0,0.00026011,120]
[423281503,1780019711000,1338.0,0.00027311,120]
[423281505,1780019749000,-300.0,0.00012158,2]
[423281506,1780019771000,1878.0,0.00028082,120]
[423281507,1780019802000,-300.0,0.00012157,2]
[423281508,1780019804000,167.38,0.00027525,120]
[423281509,1780019857000,-300.0,0.00012157,2]
[423281511,1780019859000,160.29,7.693e-05,2]
[423281510,1780019859000,160.29,7.052e-05,2]
[423281512,1780019859000,160.29,8.334e-05,2]
[423281514,1780019859000,160.29,9.616e-05,2]
[423281513,1780019859000,160.29,8.975e-05,2]
[423281515,1780019859000,160.29,0.00010257,2]
[423281516,1780019859000,160.29,0.00010898,2]
[423281517,1780019908000,-160.29,0.00011539,2]
[423281518,1780019926000,612.0,0.00028,120]
[423281519,1780020000000,150.0,0.00017901,120]
[423281520,1780020001000,175.09233068,0.00017901,120]
[423281521,1780020011000,1196.0,0.00025924,120]
[423281522,1780020012000,1196.0,0.00027221,120]
[423281523,1780020028000,419.0,0.00027402,120]
[423281524,1780020040000,216.9,0.00027475,120]
[423281525,1780020103000,-367.35034833,0.00012157,2]
[423281526,1780020105000,509.69,0.00027726,120]
[423281527,1780020130000,-367.35034833,0.00012157,2]
[423281529,1780020155000,-465.29930334,0.00012157,2]
[423281530,1780020206000,-150.0,0.00012157,2]
[423281531,1780020314000,-372.74151415,0.00012157,2]
[423281532,1780020315000,500.0,0.00012157,2]
[423281533,1780020334000,251.0,0.0002734,120]
[423281535,1780020392000,-500.0,0.00012157,2]
[423281536,1780020422000,-200.0,0.00012157,2]
[423281537,1780020436000,565.72873569,0.00027726,120]
[423281538,1780020438000,819.69164458,0.0002734,120]
[423281540,1780020469000,-500.0,0.00012156,2]
[423281541,1780020497000,500.00000009,0.00028082,120]
[423281542,1780020541000,1000.0,0.00028081,120]
[423281543,1780020600000,291.56050286,0.00020686,120]
[423281544,1780020613000,1213.0,0.00025784,120]
[423281545,1780020615000,1213.0,0.00027074,120]
[423281548,1780020631000,-150.0,0.00012155,2]
[423281565,1780020632000,-167.38,0.0001273,2]
[423281567,1780020632000,-1000.0,0.0001273,2]
[423281568,1780020632000,-160.29,0.00012821,2]
[423281563,1780020632000,-160.29,0.0001218,2]
[423281559,1780020632000,-428.89480136,0.00012155,2]
[423281557,1780020632000,-500.0,0.00012155,2]
[423281556,1780020632000,-500.0,0.00012155,2]
[423281560,1780020632000,-500.0,0.00012155,2]
[423281561,1780020632000,-500.0,0.00012155,2]
[423281555,1780020632000,-500.0,0.00012155,2]
[423281553,1780020632000,-500.0,0.00012155,2]
[423281551,1780020632000,-249.67,0.00012155,2]
[423281554,1780020632000,-500.0,0.00012155,2]
[423281552,1780020632000,-500.0,0.00012155,2]
[423281562,1780020632000,-215.5484138,0.00012163,2]
[423281550,1780020632000,-250.33,0.00012155,2]
[423281549,1780020632000,-1200.0,0.00012155,2]
[423281558,1780020632000,-500.0,0.00012155,2]
[423281564,1780020632000,-160.0,0.00012265,2]
[423281566,1780020632000,-1852.42,0.0001273,2]
[423281569,1780020632000,-2000.0,0.00012903,2]
[423281591,1780020632000,-1060.14397087,0.00013599,2]
[423281590,1780020632000,-1405.13503512,0.00013599,2]
[423281587,1780020632000,-21918.62055404,0.00013599,2]
[423281588,1780020632000,-910.60576524,0.00013599,2]
[423281570,1780020632000,-150.0,0.00013174,2]
[423281585,1780020632000,-1668.97568377,0.00013599,2]
[423281579,1780020632000,-467.53012068,0.00013598,2]
[423281581,1780020632000,-392.57711504,0.00013598,2]
[423281582,1780020632000,-343381.25248758,0.00013599,2]
[423281584,1780020632000,-31293.22142618,0.00013599,2]
[423281578,1780020632000,-500.0,0.00013598,2]
[423281583,1780020632000,-1804.06328209,0.00013599,2]
[423281576,1780020632000,-160.29,0.00013462,2]
[423281580,1780020632000,-500.0,0.00013598,2]
[423281574,1780020632000,-514.45844931,0.00013372,2]
[423281575,1780020632000,-309.87573681,0.00013373,2]
[423281573,1780020632000,-1680.0,0.00013371,2]
[423281571,1780020632000,-255.0,0.00013237,2]
[423281572,1780020632000,-855.73,0.00013292,2]
[423281577,1780020632000,-405.06791523,0.00013598,2]
[423281593,1780020636000,168.0,0.00027246,120]
[423281603,1780020638000,-356.12188787,0.00013599,2]
[423281599,1780020638000,-500.0,0.00013499,2]
[423281600,1780020638000,-24.80153744,0.00013499,2]
[423281602,1780020638000,-1167.26486809,0.00013599,2]
[423281597,1780020638000,-209.03147293,0.00012272,2]
[423281598,1780020638000,-790.96852707,0.00013499,2]
[423281601,1780020638000,-379.03493721,0.00013599,2]
[423281608,1780020640000,-828.58022148,0.00013599,2]
[423281607,1780020640000,-529.80780789,0.00013599,2]
[423281610,1780020640000,-665.0,0.00013599,2]
[423281611,1780020640000,-476.17111661,0.00013599,2]
[423281609,1780020640000,-514.07266405,0.00013599,2]
[423281700,1780020647000,-353.93710715,0.00013599,2]
[423281728,1780020699000,174.87,9.548e-05,2]
[423281727,1780020699000,133.46326542,7.956e-05,2]
[423281726,1780020699000,41.40673458,7.956e-05,2]
[423281725,1780020699000,174.87,6.365e-05,2]
[423281729,1780020842000,-174.87,0.00011139,2]
[423281730,1780020874000,2500.0,0.0002808,120]
[423281732,1780020897000,-174.65402904,0.00011356,2]
[423281733,1780020899000,2500.0,0.0002808,120]
[423281736,1780020910000,728.0,0.00027662,120]
[423281735,1780020910000,2500.0,0.0002808,120]
[423281734,1780020910000,728.0,0.00026345,120]
[423281737,1780020917000,2500.0,0.0002808,120]
[423281739,1780020947000,-386.51451291,0.00012168,2]
[423281740,1780020947000,2500.0,0.0002808,120]
[423281741,1780020949000,2500.0,0.0002808,120]
[423281744,1780020952000,2500.0,0.0002808,120]
[423281743,1780020952000,5000.0,0.00028082,120]
[423281742,1780020952000,2500.0,0.0002808,120]
[423281745,1780020990000,1000.0,0.00028082,120]
[423281746,1780021004000,2500.0,0.0002808,120]
[423281748,1780021005000,500.0,0.00027731,120]
[423281749,1780021011000,2500.0,0.0002808,120]
[423281750,1780021022000,226.57,0.00028082,120]
[423281751,1780021028000,3000.0,0.00028,120]
[423281752,1780021031000,2500.0,0.0002808,120]
[423281753,1780021043000,1000.0,0.00028082,120]
[423281754,1780021050000,1000.0,0.00028082,120]
[423281755,1780021057000,1000.0,0.00028082,120]
[423281756,1780021070000,2000.0,0.00028082,120]
[423281757,1780021079000,2000.0,0.00028082,120]
[423281758,1780021121000,2000.0,0.00028082,120]
[423281759,1780021140000,1856.51,0.00028082,120]
[423281760,1780021163000,19011.8027747,8e-05,2]
[423281761,1780021200000,174.93630172,0.00019365,120]
[423281762,1780021203000,2500.0,0.00028,120]
[423281764,1780021207000,437.0,0.00026918,120]
[423281763,1780021207000,2500.0,0.0002808,120]
[423281765,1780021215000,209.67,0.00027477,120]
[423281766,1780021216000,209.67,0.00028053,120]
[423281767,1780021266000,-351.36353825,0.000121,30]
[423281768,1780021294000,-351.36353825,0.000121,30]
[423281769,1780021295000,1038.37,0.00028082,120]
[423281770,1780021296000,443.24141036,0.00028,120]
[423281774,1780021322000,-429.6840112,0.000121,30]
[423281775,1780021323000,395.68094194,7.888e-05,2]
[423281781,1780021354000,1090.0,0.00028,120]
[423281780,1780021354000,-125.54394276,0.000121,30]
[423281782,1780021355000,179718.74951331,0.000107,2]
[423281783,1780021361000,2500.0,0.0002808,120]
[423281791,1780021363000,500.0,0.00010699,2]
[423281790,1780021363000,500.0,0.00010699,2]
[423281789,1780021363000,500.0,0.00010699,2]
[423281788,1780021363000,500.0,0.00010699,2]
[423281787,1780021363000,589.17983355,0.00010699,2]
[423281785,1780021363000,309.78957706,0.00010699,2]
[423281786,1780021363000,500.0,0.00010699,2]
[423281784,1780021363000,500.0,0.00010699,2]
[423281792,1780021364000,500.0,0.00010699,2]
[423281793,1780021364000,500.0,0.00010699,2]
[423281795,1780021367000,238.07129863,0.00010699,2]
[423281794,1780021367000,402.8171348,0.00010699,2]
[423281798,1780021367000,309.92746308,0.00010699,2]
[423281797,1780021367000,500.0,0.00010699,2]
[423281796,1780021367000,283.54754066,0.00010699,2]
[423281799,1780021368000,500.0,0.00010699,2]
[423281800,1780021406000,-180.41107815,0.00012182,2]
[423281802,1780021411000,168.60412774,0.00010699,2]
[423281801,1780021411000,322.77207589,0.00010699,2]
[423281803,1780021412000,2000.0,0.00028,120]
[423281804,1780021459000,-500.0,0.00012,2]
[423281806,1780021480000,500.0,0.00027727,120]
[423281805,1780021480000,500.0,0.00027727,120]
[423281807,1780021481000,572.0,0.00027727,120]
[423281812,1780021512000,-156.86776104,0.000121,7]
[423281826,1780021538000,-427.86,0.0001222,2]
[423281825,1780021538000,5000.0,0.00028082,120]
[423281850,1780021592000,-91.58204988,0.00012089,2]
[423281849,1780021592000,-175.01775012,0.00012045,2]
[423281852,1780021594000,-175.01775012,0.00012089,2]
[423281851,1780021594000,357.41136668,0.00028082,120]
[423281853,1780021599000,-172.70144957,0.00012234,2]
[423281865,1780021624000,-36.38911802,0.00012234,2]
[423281866,1780021626000,152.0,0.00028077,120]
[423281867,1780021627000,2471.01,0.00028082,120]
[423281869,1780021673000,-250.0,0.00012237,2]
[423281870,1780021676000,2500.0,0.0002808,120]
[423281871,1780021741000,1000.0,0.00028081,120]
[423281872,1780021748000,2500.0,0.0002808,120]
[423281873,1780021759000,500.0,0.00027731,120]
[423281874,1780021777000,2500.0,0.0002808,120]
[423281875,1780021800000,169.29851734,0.00017795,120]
[423281876,1780021803000,306.0,0.00027031,120]
[423281877,1780021820000,3237.0,0.0002808,120]
[423281889,1780021833000,-362.93,0.00011817,2]
[423281891,1780021833000,-113.06419949,0.000121,7]
[423281892,1780021833000,-183.9406873,0.000121,7]
[423281894,1780021833000,-209.09056759,0.0001226,2]
[423281895,1780021833000,-28.35613182,0.00012342,7]
[423281897,1780021833000,-150.0,0.00012422,2]
[423281893,1780021833000,-215.5484138,0.0001226,2]
[423281898,1780021833000,-163.54,0.00012422,2]
[423281896,1780021833000,-155.58455548,0.00012342,7]
[423281899,1780021833000,-1000.0,0.00012425,2]
[423281890,1780021833000,-38.13784894,0.000121,7]
[423281901,1780021833000,-150.0,0.00012545,2]
[423281902,1780021833000,-347.56720396,0.00012568,2]
[423281904,1780021833000,-246.65275911,0.00012617,2]
[423281903,1780021833000,-166.76,0.00012586,2]
[423281905,1780021833000,-1951.62655839,0.00012664,2]
[423281906,1780021833000,-1246.48,0.00012664,2]
[423281908,1780021833000,-527.63780938,0.00012664,2]
[423281909,1780021833000,-70493.46256314,0.00012664,2]
[423281907,1780021833000,-1500.36,0.00012664,2]
[423281910,1780021833000,-12802.38996908,0.00012664,2]
[423281900,1780021833000,-246.65275913,0.00012487,2]
[423281922,1780021838000,-1745.87148,0.00012664,2]
[423281921,1780021838000,-1136.5894242,0.00012664,2]
[423281924,1780021838000,-819.66703727,0.00012664,2]
[423281926,1780021838000,-351.36353825,0.00012664,2]
[423281923,1780021838000,-429.6840112,0.00012664,2]
[423281952,1780021840000,-6779.0,0.0001278,2]
[423281955,1780021840000,-331.22578771,0.00012784,2]
[423281953,1780021840000,-341.0,0.00012784,2]
[423281954,1780021840000,-14184.0,0.00012784,2]
[423281951,1780021840000,-396.0,0.0001278,2]
[423281957,1780021840000,-230.4487729,0.00012784,2]
[423281959,1780021840000,-468.0,0.00012784,2]
[423281960,1780021840000,-150.0,0.00012784,2]
[423281962,1780021840000,-500.0,0.00012784,2]
[423281961,1780021840000,-166.64990904,0.00012784,2]
[423281964,1780021840000,-542.79315707,0.00012784,2]
[423281956,1780021840000,-500.0,0.00012784,2]
[423281958,1780021840000,-500.0,0.00012784,2]
[423281965,1780021840000,-500.0,0.00012784,2]
[423281935,1780021840000,-77031.60238439,0.00012664,2]
[423281949,1780021840000,-1775.67149629,0.00012747,2]
[423281948,1780021840000,-246.65275911,0.00012747,2]
[423281947,1780021840000,-1255.19406851,0.00012747,2]
[423281945,1780021840000,-1600.0,0.0001273,2]
[423281946,1780021840000,-1168.31,0.0001273,2]
[423281943,1780021840000,-152.1,0.0001273,2]
[423281944,1780021840000,-2000.0,0.0001273,2]
[423281937,1780021840000,-183.9406873,0.00012705,7]
[423281942,1780021840000,-174.87,0.0001273,2]
[423281941,1780021840000,-1200.0,0.00012729,2]
[423281938,1780021840000,-300.0,0.00012729,2]
[423281940,1780021840000,-300.0,0.00012729,2]
[423281939,1780021840000,-300.0,0.00012729,2]
[423281936,1780021840000,-150.0,0.00012668,2]
[423281950,1780021840000,-5679.0,0.00012779,2]
[423281966,1780021840000,-500.0,0.00012784,2]
[423281981,1780021840000,-3449.64,0.00012832,2]
[423281967,1780021840000,-256.10643252,0.00012784,2]
[423281963,1780021840000,-500.0,0.00012784,2]
[423281997,1780021840000,-475.8139317,0.00013,2]
[423281995,1780021840000,-1535.0,0.00012949,2]
[423281996,1780021840000,-1255.19406851,0.00012986,2]
[423281992,1780021840000,-265.0,0.00012914,2]
[423281991,1780021840000,-500.0,0.000129,2]
[423281990,1780021840000,-2400.0,0.000129,4]
[423281993,1780021840000,-568.0,0.00012917,2]
[423281994,1780021840000,-1810.0,0.00012923,2]
[423281989,1780021840000,-4909.1475756,0.00012899,2]
[423281988,1780021840000,-1918.0,0.00012898,2]
[423281986,1780021840000,-1453.0,0.00012872,2]
[423281987,1780021840000,-539.0,0.00012892,2]
[423281985,1780021840000,-461.0,0.00012866,2]
[423281983,1780021840000,-512444.1630767,0.00012845,2]
[423281998,1780021840000,-197.61511844,0.00013024,2]
[423281979,1780021840000,-347.56720391,0.00012827,2]
[423281984,1780021840000,-1369.0,0.00012847,2]
[423281969,1780021840000,-901.0,0.0001279,2]
[423281971,1780021840000,-1703.0,0.00012796,2]
[423281970,1780021840000,-150.0,0.00012791,2]
[423281972,1780021840000,-219.6808913,0.00012799,2]
[423281973,1780021840000,-399.0,0.00012804,2]
[423281968,1780021840000,-24112.0930496,0.00012785,2]
[423281977,1780021840000,-495.0,0.00012815,2]
[423281976,1780021840000,-10270.71097759,0.00012809,2]
[423281974,1780021840000,-9571.0,0.00012804,2]
[423281978,1780021840000,-624.0,0.00012821,2]
[423281982,1780021840000,-900.0,0.00012841,2]
[423281980,1780021840000,-195.0,0.00012829,2]
[423281975,1780021840000,-299.0,0.00012805,2]
[423282040,1780021841000,-58740.01952528,0.00013693,2]
[423282042,1780021841000,-150.0,0.00013697,2]
[423282039,1780021841000,-150.0,0.00013675,2]
[423282045,1780021841000,-500.0,0.00013698,2]
[423282038,1780021841000,-150.0,0.00013675,2]
[423282035,1780021841000,-150.0,0.00013627,2]
[423282037,1780021841000,-1775.67149624,0.0001367,2]
[423282036,1780021841000,-150.0,0.00013662,2]
[423282063,1780021841000,-500.0,0.00013698,2]
[423282032,1780021841000,-402.03739719,0.00013599,2]
[423282047,1780021841000,-500.0,0.00013698,2]
[423282046,1780021841000,-500.0,0.00013698,2]
[423282033,1780021841000,-150.0,0.00013603,2]
[423282054,1780021841000,-500.0,0.00013698,2]
[423282048,1780021841000,-500.0,0.00013698,2]
[423282049,1780021841000,-500.0,0.00013698,2]